Workbook

Sheet Лист1
A1: от 26.01.2016. | I1: "Утверждаю"
I2: Руководитель дошкольной образовательной
I3: организации
L4: ____________________
C9: Примерное десятидневное цикличное
E10: МЕНЮ
D11: для организации питания детей в дошкольных учреждениях
G12: с 11-12- часовым пребыванием
F13: от 1,5 до 3 лет
A14: День 1 - ый
A15: Наименование блюд и | D15: Масса | E15: Кол - во | F15: Кол - во | G15: Пищевые вещества | J15: Энергетическая | K15: Витамины | N15: Минеральные
A16: продуктов | D16: порции | E16: (в гр ) | F16: (в гр ) | J16: ценность | L16: мг | N16: вещества
E17: брутто | F17: нетто | G17: белки | H17: жиры | I17: угл-ды | J17: Ккал | K17: В1 | L17: В2 | M17: С | N17: Са | O17: Fe
B18: ЗАВТРАК
A19: Каша манная молочная с маслом | D19: 135 | G19: 2.93 | H19: 4.56 | I19: 14.04 | J19: 109 | K19: 0.04 | L19: 0.04 | M19: 0.14 | N19: 81.25 | O19: 0.27
B20: Крупа манная | E20: 19 | F20: 19
B21: Молоко | E21: 110 | F21: 110
B22: Сахар | E22: 1.5 | F22: 1.5
B23: Соль | E23: 0.5 | F23: 0.5
B24: Масло сливочное | E24: 5 | F24: 5
A25: Кофейный напиток с молоком | D25: 150 | G25: 1.22 | H25: 1.34 | I25: 11.94166667 | J25: 65 | K25: 0.01 | L25: 0.12 | M25: 0.19 | N25: 40 | O25: 0.08
B26: Кофейный напиток | E26: 1 | F26: 1
B27: Сахар | E27: 10 | F27: 10
B28: Молоко | E28: 80 | F28: 80
B29: Вода | E29: 80 | F29: 80
A30: Бутерброд с маслом сливочным | D30: 30/5 | G30: 2.35 | H30: 5.1 | I30: 15.0 | J30: 112 | K30: 0.03 | L30: 0.3 | N30: 6.5 | O30: 0.33
B31: Хлеб белый 1с | E31: 30 | F31: 30
B32: Масло сливочное | E32: 5 | F32: 5
A33: Итого: | G33: =SUM(G19:G32) -> 6.5 | H33: 11.0 | I33: 41.0 | J33: 286 | K33: 0.08 | L33: 0.46 | M33: 0.33 | N33: 127.75 | O33: 0.68
B34: 2 - ой ЗАВТРАК
A35: Сок фруктовый | D35: 100 | E35: 100 | F35: 100 | G35: 0.5 | I35: 10.6 | J35: 44 | K35: 0.01 | L35: 0.1 | M35: 2 | N35: 7 | O35: 1.4
A36: Итого: | G36: =SUM(G35:G35) -> 0.5 | H36: 0 | I36: 10.6 | J36: 44 | K36: 0.01 | L36: 0.1 | M36: 2 | N36: 7 | O36: 1.4
B43: ОБЕД
A44: Щи со свежей капустой,картофелем, | D44: 200/12/7 | G44: 4.2 | H44: 6.4 | I44: 6.4 | J44: 97 | K44: 0.02 | L44: 0.03 | M44: 8.1 | N44: 30.1 | O44: 0.6
A45: с цыплятами, со сметаной
B46: Цыплята бройлеры | E46: 23.1 | F46: 15.0
B47: Капуста свежая | E47: 53 | F47: 42.5
B48: Картофель | E48: 34.3 | F48: 24
B49: Морковь | E49: 15 | F49: 12
B50: Лук репчатый | E50: 14.3 | F50: 12
B51: Томатная паста | E51: 1 | F51: 1
B52: Масло растительное | E52: 3.2 | F52: 3.2
B53: Сметана | E53: 7 | F53: 7
B54: Соль | E54: 1.2 | F54: 1.2
B55: Вода | E55: 160 | F55: 160
A56: Запеканка картофельная с мясом | D56: 150 | G56: 15 | H56: 23.4 | I56: 22.3 | J56: 335 | K56: 0.13 | L56: 0.13 | M56: 3.27 | N56: 24.46 | O56: 3.08
B57: Фарш говяжий | E57: 49.2 | F57: 49.2
B58: Масло сливочное | E58: 2.5 | F58: 2.5
B59: Картофель | E59: 172 | F59: 120
B60: Лук репчатый | E60: 11.9 | F60: 10
B61: Масло сливочное | E61: 2.5 | F61: 2.5
B62: Сухари панировочные | E62: 7.1 | F62: 7.1
B63: Соль | E63: 1.2 | F63: 1.2
A64: Морковь припущенная (протёртая)с сахаром | D64: 40/5 | G64: 0.6 | H64: 0.1 | I64: 6.9 | J64: 31 | K64: 0.02 | L64: 0.02 | M64: 1.52 | N64: 10.8 | O64: 0.24
B65: Морковь | E65: 53.6 | F65: 40
B66: Сахар | E66: 3 | F66: 3
A67: Компот из урюка | D67: 150 | G67: 0.78 | H67: 0.05 | I67: 15.65 | J67: 67 | K67: 0.02 | L67: 0.02 | M67: 0.6 | N67: 24.9 | O67: 0.48
B68: урюк | E68: 15.0 | F68: 15.0
B69: Сахар | E69: 10.0 | F69: 10.0
A70: Хлеб Сельский | D70: 40 | E70: 40 | F70: 40 | G70: 2.6 | H70: 0.5 | I70: 14 | J70: 82 | K70: 0.05 | L70: 0.04 | N70: 9.4 | O70: 1.04
A71: Итого: | G71: =SUM(G44:G70) -> 23.1 | H71: 30.5 | I71: 65.14 | J71: 611 | K71: 0.2 | L71: 0.2 | M71: 13.5 | N71: 99.7 | O71: 5.4
B72: ПОЛДНИК
A73: Кондитерские изделия | D73: 7 | E73: 7 | F73: 7 | G73: 0.55 | H73: 0.57 | I73: 5.36 | J73: 29 | K73: 0.01 | L73: 0.015 | N73: 2.03 | O73: 0.15
A74: Ряженка 2,5 % | D74: 150 | E74: 155 | F74: 150 | G74: 4.35 | H74: 3.8 | I74: 6.3 | J74: 81 | K74: 0.03 | L74: 0.2 | M74: 0.45 | N74: 186 | O74: 0.15
A75: Итого: | G75: =SUM(G73:G74) -> 4.9 | H75: 4.4 | I75: 11.66 | J75: 110 | K75: 0.04 | L75: 0.215 | M75: 0.45 | N75: 188.03 | O75: 0.3
B76: УЖИН
A77: Фрукты свежие | D77: 95 | E77: 108 | F77: 95 | G77: 0.38 | H77: 0.38 | I77: 9.31 | J77: 45 | K77: 0.03 | L77: 0.04 | M77: 9.50 | N77: 15.20 | O77: 2.09
A78: Суфле из творога с повидлом | D78: 100/15 | G78: 18.7 | H78: 5.6 | I78: 22.6 | J78: 216 | K78: 0.08 | L78: 0.60 | M78: 0.39 | N78: 188.15 | O78: 0.56
B79: Творог | E79: 100 | F79: 100
B80: Мука пшеничная | E80: 7 | F80: 7
B81: Яйца | E81: 6.5 | F81: 6.5
B82: Сахар | E82: 8 | F82: 8
B83: Молоко | E83: 15 | F83: 15
B84: Сметана | E84: 8 | F84: 8
B85: Масло растительное | E85: 1.1 | F85: 1.1
B86: Повидло фруктовое | E86: 15 | F86: 15
A87: Чай с сахаром | D87: 160 | I87: 8 | J87: 32 | N87: 0.24 | O87: 0.02
B88: Заварка | E88: 0.5 | F88: 0.5
B89: Сахар | E89: 10 | F89: 10
A90: Хлеб белый 1с | D90: 30 | E90: 30 | F90: 30 | G90: 3.1 | H90: 1.2 | I90: 19.9 | J90: 98 | K90: 0.05 | L90: 0.04 | M90: 0 | N90: 8
A91: Итого: | G91: =SUM(G77:G90) -> 22.1 | H91: 7.1 | I91: 59.8 | J91: 391 | K91: 0.2 | L91: 0.7 | M91: 9.9 | N91: 211.6 | O91: 2.67
A95: Итого: | G95: =SUM(G93:G94) -> 0.0 | H95: 0.0 | I95: 0.0 | J95: 0 | K95: 0.0 | L95: 0.0 | M95: 0.0 | N95: 0.0 | O95: 0.0
A96: ВСЕГО: | G96: =SUM(G95,G91,G75,G71,G36,G33) -> 57.2 | H96: 53.0 | I96: 188.2 | J96: 1442 | K96: 0.5 | L96: 1.7 | M96: 26.2 | N96: 634.0 | O96: 10.5
A127: День 2 - ой
A128: Наименование блюд и | D128: Масса | E128: Кол - во | F128: Кол - во | G128: Пищевые вещества | J128: Энергетическая | K128: Витамины | N128: Минеральные
A129: продуктов | D129: порции | E129: (в гр ) | F129: (в гр ) | J129: ценность | L129: мг | N129: вещества
E130: брутто | F130: нетто | G130: белки | H130: жиры | I130: угл-ды | J130: Ккал | K130: В1 | L130: В2 | M130: С | N130: Са | O130: Fe
B131: ЗАВТРАК
A132: Каша Геркулесовая молочная с маслом | D132: 135 | G132: 3.42 | H132: 4.19 | I132: 13.68 | J132: 106 | K132: 0.09 | L132: 0.09 | M132: 0.15 | N132: 94.93 | O132: 0.80
B133: Крупа Геркулесовая | E133: 22 | F133: 22
B134: Молоко | E134: 110 | F134: 110
B135: Сахар | E135: 3 | F135: 3
B136: Соль | E136: 0.5 | F136: 0.5
B137: Масло сливочное | E137: 5 | F137: 5
A138: Какао с молоком | D138: 150 | G138: 2.42 | H138: 2.58 | I138: 13.60833333 | J138: 88 | K138: 0 | L138: 0.03 | M138: 0.17 | N138: 0.3916666667 | O138: 82.95
B139: Какао порошок | E139: 1 | F139: 1
B140: Сахар | E140: 10 | F140: 10
B141: Молоко | E141: 110 | F141: 110
B142: Вода | E142: 50 | F142: 50
A143: Бутерброд с сыром, маслом | D143: 30/6/5 | G143: 3.95 | H143: 6.7 | I143: 16.6 | J143: 133 | K143: 0.10 | L143: 0.36 | M143: 0.06 | N143: 9.22 | O143: 0.51
B144: Хлеб белый 1с | E144: 30 | F144: 30
B145: Сыр | E145: 6.12 | F145: 6
B146: Масло сливочное | E146: 5 | F146: 5
A147: Итого: | G147: =SUM(G132:G146) -> 9.79 | H147: 13.47 | I147: 43.90 | J147: 327 | K147: 0.19 | L147: 0.48 | M147: 0.38 | N147: 104.55 | O147: 84.26
B148: 2 - ой ЗАВТРАК
A149: Сок фруктовый | D149: 100 | E149: 100 | F149: 100 | G149: 0.5 | I149: 10.6 | J149: 44 | K149: 0.01 | L149: 0.1 | M149: 2 | N149: 7 | O149: 1.4
A150: Итого: | G150: =SUM(G149) -> 0.50 | I150: =SUM(I149) -> 10.60 | J150: 44 | K150: 0.01 | L150: 0.10 | M150: 2.00 | N150: 7.00 | O150: 1.40
B151: ОБЕД
A152: Борщ со свежей капустой, картофелем, с | D152: 200/10/7 | G152: 4.63 | H152: 4.89 | I152: 9.58 | J152: 101 | K152: 0.05 | L152: 0.05 | M152: 6.35 | N152: 31.80 | O152: 1.04
A153: с говядиной ,со сметаной
B154: Говядина мякоть | E154: 16.2 | F154: 16.2
B155: Капуста свежая | E155: 40.0 | F155: 32.0
B156: Картофель | E156: 23.2 | F156: 16.0
B157: Морковь | E157: 16.0 | F157: 12.0
B158: Лук репчатый | E158: 14.3 | F158: 12.0
B159: Свекла | E159: 43.2 | F159: 32.0
B160: Сахар | E160: 2.4 | F160: 2.4
B161: Томатная паста | E161: 1.0 | F161: 1.0
B162: Масло растительное | E162: 3.3 | F162: 3.3
B163: Сметана | E163: 7.0 | F163: 7.0
B164: Соль | E164: 1.2 | F164: 1.2
B165: Вода | E165: 160 | F165: 160.0
A166: Биточки куриные "Солнышко" | D166: 70 | G166: 14.18 | H166: 17.41 | I166: 8.93 | J166: 250 | K166: 0.06 | L166: 0.15 | M166: 0.53 | N166: 18.55 | O166: 1.66
B167: Цыплята бройлеры | E167: 84.6 | F167: 55
B168: Морковь | E168: 23.4 | F168: 17.5
B169: Лук репчатый | E169: 11.9 | F169: 10.0
B170: Яйцо д.1 | E170: 3.5 | F170: 3.5
B171: Соль | E171: 1.0 | F171: 1.0
B172: Мука пшеничная | E172: 9.0 | F172: 9.0
B173: Масло растительное | E173: 4.2 | F173: 4.2
A174: Овощи (порциями) | D174: 30 | G174: 0.2 | H174: 0.0 | I174: 0.5 | J174: 4 | K174: 0.03 | L174: 0.03 | M174: 1.5 | N174: 4.2 | O174: 0.2
B175: Огурцы солёные | E175: 54.6 | F175: 30
A176: Пюре картофельное | D176: 130 | G176: 3.28 | H176: 5.15 | I176: 21.06 | J176: 142 | K176: 0.13 | L176: 0.17 | M176: 9.10 | N176: 30.94 | O176: 0.91
B177: Картофель | E177: 185 | F177: 111
B178: Молоко | E178: 20.5 | F178: 20
B179: Масло сливочное | E179: 4.5 | F179: 4.5
B180: Соль | E180: 1.3 | F180: 1.3
A181: Кисель | D181: 150 | I181: 7.5 | J181: 89 | N181: 0.15 | O181: 0.02
B182: Кисель | E182: 15.0 | F182: 15.0
B183: Сахар | E183: 8.0 | F183: 8.0
A184: Хлеб Сельский | D184: 40 | E184: 40 | F184: 40 | G184: 2.6 | H184: 0.5 | I184: 14 | J184: 82 | K184: 0.05 | L184: 0.04 | N184: 9.4 | O184: 1.04
A185: Итого: | G185: =SUM(G152:G184) -> 24.92 | H185: 27.98 | I185: 61.58 | J185: 668 | K185: 0.3 | L185: 0.4 | M185: 17.5 | N185: 95.04 | O185: 4.87
B186: ПОЛДНИК
A187: Кондитерские изделия | D187: 7 | E187: 7 | F187: 7 | G187: 0.55 | H187: 0.57 | I187: 5.36 | J187: 29 | K187: 0.01 | L187: 0.015 | N187: 2.03 | O187: 0.15
A188: Кефир 2,5 % | D188: 150 | E188: 155 | F188: 150 | G188: 4.35 | H188: 3.8 | I188: 6.0 | J188: 80 | K188: 0.06 | L188: 0.26 | M188: 1.05 | N188: 180 | O188: 0.15
A189: Итого: | G189: =SUM(G187:G188) -> 4.9 | H189: 4.3 | I189: 11.4 | J189: 109 | K189: 0.07 | L189: 0.275 | M189: 1.05 | N189: 182.03 | O189: 0.3
B190: УЖИН
A191: Фрукты свежие | D191: 95 | E191: 108 | F191: 95 | G191: 0.38 | H191: 0.38 | I191: 9.31 | J191: 45 | K191: 0.03 | L191: 0.04 | M191: 9.50 | N191: 15.20 | O191: 2.09
A192: Запеканка вермишелевая с морковью,сыром | D192: 130 | G192: 6.12 | H192: 7.08 | I192: 21.84 | J192: 138 | K192: 0.05 | L192: 0.04 | M192: 0.00 | N192: 8.28 | O192: 0.85
B193: Макаронные изделия | E193: 35 | F193: 35
B194: Морковь | E194: 33.5 | F194: 25
B195: Яйцо д.1 | E195: 4.6 | F195: 4.6
B196: Сыр | E196: 6.63 | F196: 6.5
B197: Масло растительное | E197: 2.4 | F197: 2.4
B198: Масло сливочное | E198: 5.00 | F198: 5.00
B199: Соль | E199: 1.3 | F199: 1.3
A200: Чай с сахаром | D200: 160 | I200: 8 | J200: 32 | N200: 0.24 | O200: 0.02
B201: Заварка | E201: 0.5 | F201: 0.5
B202: Сахар | E202: 10 | F202: 10
A203: Хлеб белый 1с | D203: 30 | E203: 30 | F203: 30 | G203: 2.3 | H203: 0.9 | I203: 14.9 | J203: 74 | K203: 0.04 | L203: 0.03 | M203: 0 | N203: 6
A204: Итого: | G204: =SUM(G191:G203) -> 8.8 | H204: 8.4 | I204: 54.1 | J204: 289 | K204: 0.1 | L204: 0.1 | M204: 9.50 | N204: 29.72 | O204: 2.96
A207: Итого: | G207: =SUM(G206:G206) -> 0.0 | H207: 0.0 | I207: 0.0 | J207: 0 | K207: 0.0 | L207: 0.0 | M207: 0.0 | N207: 0.0 | O207: 0.0
A209: ВСЕГО: | G209: =SUM(G207,G204,G189,G185,G150,G147) -> 48.9 | H209: 54.1 | I209: 181.5 | J209: 1437 | K209: 0.7 | L209: 1.4 | M209: 30.4 | N209: 418.3 | O209: 93.8
A215: День 3 - ий
A216: Наименование блюд и | D216: Масса | E216: Кол - во | F216: Кол - во | G216: Пищевые вещества | J216: Энергетическая | K216: Витамины | N216: Минеральные
A217: продуктов | D217: порции | E217: (в гр ) | F217: (в гр ) | J217: ценность | L217: мг | N217: вещества
E218: брутто | F218: нетто | G218: белки | H218: жиры | I218: угл-ды | J218: Ккал | K218: В1 | L218: В2 | M218: С | N218: Са | O218: Fe
B219: ЗАВТРАК
A220: Каша ячневая молочная с маслом | D220: 135 | G220: 3.1 | H220: 4.6 | I220: 13.3 | J220: 124 | K220: 0.1155995935 | L220: 0.08257113821 | M220: 0.1486280488 | N220: 91.57139228 | O220: 0.7679115854
B221: Крупа ячневая | E221: 22 | F221: 22
B222: Молоко | E222: 110 | F222: 110
B223: Сахар | E223: 3 | F223: 3
B224: Соль | E224: 0.5 | F224: 0.5
B225: Масло сливочное | E225: 5 | F225: 5
A226: Кофейный напиток с молоком | D226: 150 | G226: 1.22 | H226: 1.34 | I226: 11.94166667 | J226: 65 | K226: 0.01 | L226: 0.12 | M226: 0.19 | N226: 40 | O226: 0.08
B227: Кофейный напиток | E227: 1 | F227: 1
B228: Сахар | E228: 10 | F228: 10
B229: Молоко | E229: 80 | F229: 80
B230: Вода | E230: 80 | F230: 80
A231: Бутерброд с маслом сливочным | D231: 30/5 | G231: 2.35 | H231: 5.1 | I231: 15.0 | J231: 112 | K231: 0.03 | L231: 0.3 | N231: 6.5 | O231: 0.33
B232: Хлеб белый 1с | E232: 30 | F232: 30
B233: Масло сливочное | E233: 5 | F233: 5
A234: Итого: | G234: =SUM(G220:G233) -> 6.6 | H234: 11.0 | I234: 40.2 | J234: 301 | K234: 0.2 | L234: 0.5 | M234: 0.3 | N234: 138.1 | O234: 1.2
B235: 2 - ой ЗАВТРАК
A236: Сок фруктовый | D236: 100 | E236: 100 | F236: 100 | G236: 0.5 | I236: 10.6 | J236: 44 | K236: 0.01 | L236: 0.1 | M236: 2 | N236: 7 | O236: 1.4
A238: Итого: | G238: =SUM(G236:G237) -> 0.5 | H238: 0 | I238: 10.6 | J238: 44 | K238: 0.01 | L238: 0.1 | M238: 2 | N238: 7 | O238: 1.4
B239: ОБЕД
A240: Рассольник ленинградский с цыплятами, со | D240: 200/12/7 | G240: 4.39 | H240: 6.54 | I240: 12.64 | J240: 128 | K240: 0.07 | L240: 0.96 | M240: 5.48 | N240: 20.01 | O240: 0.92
A241: сметаной
B242: Цыплята | E242: 23.1 | F242: 15
B243: Картофель | E243: 71.5 | F243: 50.0
B244: Крупа перловая | E244: 6.0 | F244: 6.0
B245: Морковь | E245: 15.0 | F245: 12.0
B246: Лук репчатый | E246: 11.9 | F246: 10
B247: Масло растительное | E247: 3.2 | F247: 3.2
B248: Огурцы соленые | E248: 30.9 | F248: 17
B249: Сметана | E249: 7 | F249: 7
B250: Соль | E250: 1 | F250: 0.8
B251: Вода | E251: 150 | F251: 150
A252: Котлеты рубленые из говядины (паровые) | D252: 70 | G252: 10.36 | H252: 7.7 | I252: 14.49 | J252: 135 | K252: 0.05 | L252: 0.05 | M252: 0.14 | N252: 30.80 | O252: 0.88
... 643 more rows

Sheet Лист2

Sheet Лист3
